[Event "Titled Tuesday Blitz January 31 Late 2023"]
[White "Kohler, Aran"]
[Black "Machidon, Cristi"]
[WhiteFideId "1002856"]
[BlackFideId "13904590"]
[WhiteElo "2010"]
[BlackElo "2301"]
[Result "1-0"]
[Round "01"]
[TimeControl "180+2"]
[Date "2023.01.31"]
[WhiteClock "0:00:06"]
[BlackClock "0:00:06"]

1. Nf3 {[%clk 0:02:59]}  d5 {[%clk 0:02:57]} 2. d4 {[%clk 0:02:58]}  e6 {[%clk 0:02:55]} 3. Bf4 {[%clk 0:02:58]}  Bd6 {[%clk 0:02:52]} 4. Bg3 {[%clk 0:02:58]}  Nf6 {[%clk 0:02:50]} 5. e3 {[%clk 0:02:58]}  c5 {[%clk 0:02:46]} 6. c3 {[%clk 0:02:57]}  Qc7 {[%clk 0:02:45]} 7. Nbd2 {[%clk 0:02:56]}  Nbd7 {[%clk 0:02:41]} 8. Bb5 {[%clk 0:02:47]}  O-O {[%clk 0:02:39]} 9. Bh4 {[%clk 0:02:21]}  Ne4 {[%clk 0:02:25]} 10. Nxe4 {[%clk 0:02:16]}  dxe4 {[%clk 0:02:26]} 11. Nd2 {[%clk 0:02:16]}  f5 {[%clk 0:01:51]} 12. Bg3 {[%clk 0:02:13]}  Nf6 {[%clk 0:01:40]} 13. Bxd6 {[%clk 0:02:08]}  Qxd6 {[%clk 0:01:41]} 14. Be2 {[%clk 0:02:05]}  cxd4 {[%clk 0:01:31]} 15. cxd4 {[%clk 0:02:05]}  Bd7 {[%clk 0:00:58]} 16. O-O {[%clk 0:02:01]}  Rac8 {[%clk 0:00:56]} 17. Nc4 {[%clk 0:01:56]}  Qd5 {[%clk 0:00:48]} 18. Ne5 {[%clk 0:01:51]}  Bb5 {[%clk 0:00:48]} 19. Bxb5 {[%clk 0:01:49]}  Qxb5 {[%clk 0:00:49]} 20. Qb3 {[%clk 0:01:44]}  Qxb3 {[%clk 0:00:46]} 21. axb3 {[%clk 0:01:45]}  a6 {[%clk 0:00:46]} 22. Rfc1 {[%clk 0:01:43]}  Nd5 {[%clk 0:00:36]} 23. h3 {[%clk 0:01:39]}  Rfd8 {[%clk 0:00:34]} 24. Rc4 {[%clk 0:01:36]}  Rc7 {[%clk 0:00:22]} 25. Rac1 {[%clk 0:01:34]}  Rdc8 {[%clk 0:00:21]} 26. g4 {[%clk 0:01:29]}  Kf8 {[%clk 0:00:20]} 27. Kg2 {[%clk 0:01:26]}  Ke7 {[%clk 0:00:19]} 28. gxf5 {[%clk 0:01:24]}  exf5 {[%clk 0:00:19]} 29. h4 {[%clk 0:01:20]}  Ke6 {[%clk 0:00:17]} 30. Kg3 {[%clk 0:01:14]}  g6 {[%clk 0:00:15]} 31. Ra1 {[%clk 0:00:52]}  Kd6 {[%clk 0:00:12]} 32. Ra5 {[%clk 0:00:49]}  Nb6 {[%clk 0:00:09]} 33. Rxc7 {[%clk 0:00:41]}  Rxc7 {[%clk 0:00:10]} 34. Ra1 {[%clk 0:00:36]}  Rc2 {[%clk 0:00:10]} 35. Rb1 {[%clk 0:00:36]}  Nd5 {[%clk 0:00:09]} 36. Nc4+ {[%clk 0:00:31]}  Ke6 {[%clk 0:00:10]} 37. Na3 {[%clk 0:00:26]}  Re2 {[%clk 0:00:08]} 38. Kg2 {[%clk 0:00:25]}  Nxe3+ {[%clk 0:00:07]} 39. Kg1 {[%clk 0:00:26]}  Ng4 {[%clk 0:00:07]} 40. Rc1 {[%clk 0:00:20]}  Rxf2 {[%clk 0:00:07]} 41. Rc7 {[%clk 0:00:20]}  Rxb2 {[%clk 0:00:07]} 42. Rxb7 {[%clk 0:00:20]}  f4 {[%clk 0:00:08]} 43. Nc4 {[%clk 0:00:18]}  Rb1+ {[%clk 0:00:07]} 44. Kg2 {[%clk 0:00:17]}  f3+ {[%clk 0:00:08]} 45. Kg3 {[%clk 0:00:18]}  f2 {[%clk 0:00:08]} 46. Nd2 {[%clk 0:00:16]}  f1=Q {[%clk 0:00:07]} 47. Nxf1 {[%clk 0:00:16]}  Rxf1 {[%clk 0:00:08]} 48. Kxg4 {[%clk 0:00:17]}  Kd5 {[%clk 0:00:08]} 49. Rxh7 {[%clk 0:00:15]}  e3 {[%clk 0:00:09]} 50. Rd7+ {[%clk 0:00:12]}  Ke4 {[%clk 0:00:09]} 51. d5 {[%clk 0:00:12]}  e2 {[%clk 0:00:09]} 52. Re7+ {[%clk 0:00:13]}  Kd3 {[%clk 0:00:09]} 53. d6 {[%clk 0:00:13]}  Rf6 {[%clk 0:00:07]} 54. d7 {[%clk 0:00:12]}  Rd6 {[%clk 0:00:07]} 55. Kf3 {[%clk 0:00:12]}  Rf6+ {[%clk 0:00:08]} 56. Kg2 {[%clk 0:00:12]}  Rd6 {[%clk 0:00:08]} 57. Kf2 {[%clk 0:00:12]}  Rf6+ {[%clk 0:00:07]} 58. Kg2 {[%clk 0:00:13]}  Rf8 {[%clk 0:00:07]} 59. Re8 {[%clk 0:00:11]}  e1=Q {[%clk 0:00:02]} 60. Rxe1 {[%clk 0:00:09]}  Rd8 {[%clk 0:00:03]} 61. Re7 {[%clk 0:00:09]}  Kc3 {[%clk 0:00:03]} 62. Re3+ {[%clk 0:00:04]}  Kb4 {[%clk 0:00:03]} 63. Rd3 {[%clk 0:00:04]}  a5 {[%clk 0:00:03]} 64. Kg3 {[%clk 0:00:05]}  a4 {[%clk 0:00:04]} 65. bxa4 {[%clk 0:00:05]}  Kxa4 {[%clk 0:00:05]} 66. Kg4 {[%clk 0:00:05]}  Kb5 {[%clk 0:00:06]} 67. Kg5 {[%clk 0:00:06]}  Kc6 {[%clk 0:00:06]} 68. Kxg6 {[%clk 0:00:06]}  Rh8 {[%clk 0:00:06]} 69. h5 {[%clk 0:00:06]} 1-0


[Site "https://www.chess.com"]

[Event "Titled Tuesday Blitz January 31 Late 2023"]
[White "Tarnowska, Aleksandra"]
[Black "Szabo, Marcell"]
[WhiteFideId "1180967"]
[BlackFideId "2072033"]
[WhiteElo "1835"]
[BlackElo "1895"]
[Result "0-1"]
[Round "01"]
[TimeControl "180+2"]
[Date "2023.01.31"]
[WhiteClock "0:00:01"]
[BlackClock "0:01:56"]

1. e4 {[%clk 0:02:59]}  c6 {[%clk 0:02:57]} 2. d4 {[%clk 0:02:59]}  d5 {[%clk 0:02:57]} 3. Nc3 {[%clk 0:02:59]}  dxe4 {[%clk 0:02:58]} 4. Nxe4 {[%clk 0:03:00]}  Nf6 {[%clk 0:02:59]} 5. Nxf6+ {[%clk 0:02:59]}  exf6 {[%clk 0:02:59]} 6. Be3 {[%clk 0:02:51]}  Bd6 {[%clk 0:02:59]} 7. Qd2 {[%clk 0:02:50]}  Be6 {[%clk 0:02:59]} 8. Bd3 {[%clk 0:02:48]}  Nd7 {[%clk 0:02:58]} 9. Ne2 {[%clk 0:02:47]}  Nb6 {[%clk 0:02:59]} 10. O-O {[%clk 0:02:38]}  Qc7 {[%clk 0:02:59]} 11. Bf4 {[%clk 0:02:34]}  Bxf4 {[%clk 0:02:57]} 12. Nxf4 {[%clk 0:02:35]}  O-O-O {[%clk 0:02:57]} 13. c3 {[%clk 0:02:32]}  g5 {[%clk 0:02:54]} 14. Ne2 {[%clk 0:02:21]}  c5 {[%clk 0:02:49]} 15. Qe3 {[%clk 0:02:17]}  c4 {[%clk 0:02:48]} 16. Bc2 {[%clk 0:02:15]}  Nd5 {[%clk 0:02:47]} 17. Qg3 {[%clk 0:02:05]}  h5 {[%clk 0:02:48]} 18. Qxc7+ {[%clk 0:02:02]}  Kxc7 {[%clk 0:02:48]} 19. Ng3 {[%clk 0:01:54]}  Nf4 {[%clk 0:02:47]} 20. Rfe1 {[%clk 0:01:45]}  h4 {[%clk 0:02:40]} 21. Ne4 {[%clk 0:01:36]}  Bf5 {[%clk 0:02:36]} 22. Rac1 {[%clk 0:01:26]}  Rhe8 {[%clk 0:02:35]} 23. f3 {[%clk 0:01:08]}  g4 {[%clk 0:02:25]} 24. Kf1 {[%clk 0:00:44]}  h3 {[%clk 0:02:20]} 25. g3 {[%clk 0:00:40]}  Ng2 {[%clk 0:02:13]} 26. fxg4 {[%clk 0:00:23]}  Nxe1 {[%clk 0:01:58]} 27. Rxe1 {[%clk 0:00:17]}  Bg6 {[%clk 0:01:56]} 28. Bb1 {[%clk 0:00:13]}  Re6 {[%clk 0:01:54]} 29. Nd2 {[%clk 0:00:05]}  Rxe1+ {[%clk 0:01:52]} 30. Kxe1 {[%clk 0:00:06]}  Re8+ {[%clk 0:01:52]} 31. Kf2 {[%clk 0:00:05]}  Bd3 {[%clk 0:01:52]} 32. Bxd3 {[%clk 0:00:02]}  cxd3 {[%clk 0:01:53]} 33. Nf3 {[%clk 0:00:02]}  Re2+ {[%clk 0:01:54]} 34. Kf1 {[%clk 0:00:03]}  Rxb2 {[%clk 0:01:54]} 35. Ne1 {[%clk 0:00:02]}  d2 {[%clk 0:01:55]} 36. Ke2 {[%clk 0:00:01]}  d1=Q+ {[%clk 0:01:56]} 37. Kxd1 {[%clk 0:00:01]}  Rxh2 {[%clk 0:01:56]} 0-1


[Site "https://www.chess.com"]

[Event "Titled Tuesday Blitz January 31 Late 2023"]
[White "Gutkin, Ilya"]
[Black "Musovic, Armin"]
[WhiteFideId "16203470"]
[BlackFideId "939935"]
[WhiteElo "2273"]
[BlackElo "2261"]
[Result "0-1"]
[Round "01"]
[TimeControl "180+2"]
[Date "2023.01.31"]
[WhiteClock "0:00:01"]
[BlackClock "0:00:17"]

1. Nf3 {[%clk 0:03:00]}  Nf6 {[%clk 0:02:59]} 2. g3 {[%clk 0:03:00]}  g6 {[%clk 0:02:59]} 3. b3 {[%clk 0:03:00]}  Bg7 {[%clk 0:02:54]} 4. Bb2 {[%clk 0:03:00]}  O-O {[%clk 0:02:54]} 5. Bg2 {[%clk 0:03:00]}  d5 {[%clk 0:02:55]} 6. c4 {[%clk 0:03:00]}  c6 {[%clk 0:02:55]} 7. O-O {[%clk 0:03:00]}  Re8 {[%clk 0:02:55]} 8. Qc2 {[%clk 0:02:59]}  Na6 {[%clk 0:02:54]} 9. Nc3 {[%clk 0:02:55]}  Nb4 {[%clk 0:02:53]} 10. Qc1 {[%clk 0:02:53]}  d4 {[%clk 0:02:54]} 11. Na4 {[%clk 0:02:10]}  e5 {[%clk 0:02:46]} 12. a3 {[%clk 0:01:54]}  Na6 {[%clk 0:02:45]} 13. e3 {[%clk 0:01:54]}  Nh5 {[%clk 0:02:05]} 14. exd4 {[%clk 0:01:50]}  exd4 {[%clk 0:02:02]} 15. b4 {[%clk 0:01:31]}  Bf5 {[%clk 0:01:42]} 16. Re1 {[%clk 0:01:29]}  Qd7 {[%clk 0:01:32]} 17. Nc5 {[%clk 0:01:15]}  Nxc5 {[%clk 0:01:32]} 18. bxc5 {[%clk 0:01:16]}  h6 {[%clk 0:01:25]} 19. a4 {[%clk 0:01:01]}  a6 {[%clk 0:01:22]} 20. Ra3 {[%clk 0:00:50]}  g5 {[%clk 0:01:16]} 21. Qa1 {[%clk 0:00:23]}  g4 {[%clk 0:00:57]} 22. Rxe8+ {[%clk 0:00:20]}  Rxe8 {[%clk 0:00:56]} 23. Nxd4 {[%clk 0:00:18]}  Be4 {[%clk 0:00:53]} 24. Re3 {[%clk 0:00:15]}  Bxg2 {[%clk 0:00:52]} 25. Kxg2 {[%clk 0:00:15]}  Rd8 {[%clk 0:00:52]} 26. Nb3 {[%clk 0:00:14]}  Bxb2 {[%clk 0:00:50]} 27. Qxb2 {[%clk 0:00:15]}  f6 {[%clk 0:00:41]} 28. Qc2 {[%clk 0:00:12]}  Kg7 {[%clk 0:00:38]} 29. Qe4 {[%clk 0:00:12]}  Rf8 {[%clk 0:00:34]} 30. d4 {[%clk 0:00:12]}  Rf7 {[%clk 0:00:32]} 31. Qe6 {[%clk 0:00:11]}  Qxe6 {[%clk 0:00:27]} 32. Rxe6 {[%clk 0:00:12]}  Rd7 {[%clk 0:00:28]} 33. h3 {[%clk 0:00:07]}  Kf7 {[%clk 0:00:26]} 34. Re2 {[%clk 0:00:06]}  gxh3+ {[%clk 0:00:21]} 35. Kxh3 {[%clk 0:00:06]}  Ng7 {[%clk 0:00:22]} 36. Re4 {[%clk 0:00:05]}  f5 {[%clk 0:00:22]} 37. Rf4 {[%clk 0:00:04]}  Kg6 {[%clk 0:00:21]} 38. Rh4 {[%clk 0:00:05]}  Ne6 {[%clk 0:00:20]} 39. Kg2 {[%clk 0:00:05]}  h5 {[%clk 0:00:20]} 40. Kf3 {[%clk 0:00:05]}  Ng5+ {[%clk 0:00:20]} 41. Ke3 {[%clk 0:00:05]}  Ne6 {[%clk 0:00:21]} 42. Kd3 {[%clk 0:00:05]}  Ng5 {[%clk 0:00:21]} 43. Kc3 {[%clk 0:00:05]}  Ne4+ {[%clk 0:00:20]} 44. Kd3 {[%clk 0:00:05]}  Nxf2+ {[%clk 0:00:21]} 45. Ke3 {[%clk 0:00:05]}  Ne4 {[%clk 0:00:21]} 46. Rh1 {[%clk 0:00:03]}  Nxg3 {[%clk 0:00:20]} 47. Rg1 {[%clk 0:00:04]}  h4 {[%clk 0:00:21]} 48. Kf4 {[%clk 0:00:04]}  Kf6 {[%clk 0:00:21]} 49. Rg2 {[%clk 0:00:02]}  Re7 {[%clk 0:00:19]} 50. Kf3 {[%clk 0:00:01]}  Kg5 {[%clk 0:00:19]} 51. Rh2 {[%clk 0:00:01]}  f4 {[%clk 0:00:18]} 52. Nd2 {[%clk 0:00:01]}  Re3+ {[%clk 0:00:18]} 53. Kf2 {[%clk 0:00:01]}  Kg4 {[%clk 0:00:17]} 0-1


[Site "https://www.chess.com"]

[Event "Titled Tuesday Blitz January 31 Late 2023"]
[White "Slater-Jones, Henry"]
[Black "Iskusnyh, Sergei"]
[WhiteFideId "3222101"]
[BlackFideId "4120027"]
[WhiteElo "1826"]
[BlackElo "2440"]
[Result "0-1"]
[Round "01"]
[TimeControl "180+2"]
[Date "2023.01.31"]
[WhiteClock "0:00:13"]
[BlackClock "0:00:03"]

1. d4 {[%clk 0:03:00]}  d5 {[%clk 0:02:59]} 2. c4 {[%clk 0:03:01]}  c6 {[%clk 0:02:58]} 3. Nf3 {[%clk 0:03:00]}  Nf6 {[%clk 0:02:57]} 4. Qc2 {[%clk 0:02:59]}  dxc4 {[%clk 0:02:56]} 5. Qxc4 {[%clk 0:02:58]}  Bf5 {[%clk 0:02:55]} 6. g3 {[%clk 0:02:54]}  e6 {[%clk 0:02:54]} 7. Bg2 {[%clk 0:02:53]}  Nbd7 {[%clk 0:02:53]} 8. O-O {[%clk 0:02:51]}  Be7 {[%clk 0:02:53]} 9. Rd1 {[%clk 0:02:43]}  O-O {[%clk 0:02:48]} 10. Nbd2 {[%clk 0:02:26]}  Rc8 {[%clk 0:02:31]} 11. Qb3 {[%clk 0:01:50]}  b5 {[%clk 0:01:56]} 12. Nh4 {[%clk 0:01:43]}  Bg4 {[%clk 0:01:51]} 13. Nhf3 {[%clk 0:01:28]}  a6 {[%clk 0:01:37]} 14. h3 {[%clk 0:01:27]}  Bh5 {[%clk 0:01:36]} 15. g4 {[%clk 0:01:16]}  Bg6 {[%clk 0:01:35]} 16. Ne5 {[%clk 0:01:16]}  Nxe5 {[%clk 0:01:33]} 17. dxe5 {[%clk 0:01:17]}  Nd7 {[%clk 0:01:29]} 18. Nf3 {[%clk 0:01:08]}  Qc7 {[%clk 0:01:21]} 19. Bf4 {[%clk 0:01:08]}  Nc5 {[%clk 0:01:14]} 20. Qe3 {[%clk 0:01:06]}  Na4 {[%clk 0:00:34]} 21. b3 {[%clk 0:00:57]}  Nb6 {[%clk 0:00:34]} 22. Bg5 {[%clk 0:00:37]}  Nd5 {[%clk 0:00:33]} 23. Qc1 {[%clk 0:00:37]}  c5 {[%clk 0:00:30]} 24. Bxe7 {[%clk 0:00:37]}  Qxe7 {[%clk 0:00:27]} 25. Qa3 {[%clk 0:00:25]}  Nc3 {[%clk 0:00:23]} 26. Re1 {[%clk 0:00:25]}  Qa7 {[%clk 0:00:18]} 27. Rac1 {[%clk 0:00:24]}  b4 {[%clk 0:00:18]} 28. Qb2 {[%clk 0:00:24]}  c4 {[%clk 0:00:16]} 29. a3 {[%clk 0:00:22]}  a5 {[%clk 0:00:15]} 30. Nd2 {[%clk 0:00:17]}  cxb3 {[%clk 0:00:12]} 31. Nxb3 {[%clk 0:00:17]}  Rfd8 {[%clk 0:00:08]} 32. axb4 {[%clk 0:00:17]}  axb4 {[%clk 0:00:08]} 33. Kh1 {[%clk 0:00:18]}  Qxf2 {[%clk 0:00:06]} 34. Rf1 {[%clk 0:00:16]}  Qg3 {[%clk 0:00:05]} 35. Rf3 {[%clk 0:00:15]}  Qxe5 {[%clk 0:00:05]} 36. Qc2 {[%clk 0:00:15]}  Bxc2 {[%clk 0:00:03]} 37. Rxc2 {[%clk 0:00:15]}  Ne4 {[%clk 0:00:02]} 38. Rxc8 {[%clk 0:00:14]}  Rxc8 {[%clk 0:00:03]} 39. Re3 {[%clk 0:00:13]}  Nf2+ {[%clk 0:00:02]} 40. Kg1 {[%clk 0:00:13]}  Qxe3 {[%clk 0:00:03]} 0-1


[Site "https://www.chess.com"]

[Event "Titled Tuesday Blitz January 31 Late 2023"]
[White "Filgueira, Hernan"]
[Black "Good, Daniel"]
[WhiteFideId "101770"]
[BlackFideId "1302388"]
[WhiteElo "2283"]
[BlackElo "2141"]
[Result "1/2-1/2"]
[Round "01"]
[TimeControl "180+2"]
[Date "2023.01.31"]
[WhiteClock "0:01:12"]
[BlackClock "0:00:26"]

1. e4 {[%clk 0:02:59]}  c6 {[%clk 0:02:59]} 2. d4 {[%clk 0:02:58]}  d5 {[%clk 0:02:58]} 3. exd5 {[%clk 0:02:59]}  cxd5 {[%clk 0:02:58]} 4. c4 {[%clk 0:02:59]}  Nf6 {[%clk 0:02:58]} 5. Nc3 {[%clk 0:03:00]}  Nc6 {[%clk 0:02:58]} 6. Nf3 {[%clk 0:03:00]}  Bg4 {[%clk 0:02:56]} 7. cxd5 {[%clk 0:02:57]}  Nxd5 {[%clk 0:02:55]} 8. Qb3 {[%clk 0:02:57]}  Bxf3 {[%clk 0:02:55]} 9. gxf3 {[%clk 0:02:57]}  e6 {[%clk 0:02:56]} 10. Bb5 {[%clk 0:02:51]}  Bd6 {[%clk 0:02:40]} 11. Rg1 {[%clk 0:02:42]}  g6 {[%clk 0:02:29]} 12. Bg5 {[%clk 0:02:30]}  Qa5 {[%clk 0:02:16]} 13. Bd2 {[%clk 0:02:24]}  Nxc3 {[%clk 0:02:05]} 14. Bxc3 {[%clk 0:02:20]}  Qb6 {[%clk 0:01:19]} 15. d5 {[%clk 0:02:20]}  exd5 {[%clk 0:01:13]} 16. Bxh8 {[%clk 0:02:14]}  O-O-O {[%clk 0:01:13]} 17. Bxc6 {[%clk 0:01:53]}  Qxc6 {[%clk 0:00:52]} 18. Bd4 {[%clk 0:01:49]}  Re8+ {[%clk 0:00:50]} 19. Kf1 {[%clk 0:01:44]}  Qd7 {[%clk 0:00:47]} 20. Bxa7 {[%clk 0:01:25]}  Bxh2 {[%clk 0:00:35]} 21. Rc1+ {[%clk 0:01:21]}  Bc7 {[%clk 0:00:27]} 22. Bb6 {[%clk 0:01:17]}  Qh3+ {[%clk 0:00:26]} 23. Rg2 {[%clk 0:01:13]}  Qh1+ {[%clk 0:00:26]} 24. Rg1 {[%clk 0:01:13]}  Qh3+ {[%clk 0:00:26]} 25. Rg2 {[%clk 0:01:12]}  Qh1+ {[%clk 0:00:26]} 26. Rg1 {[%clk 0:01:12]}  Qh3+ {[%clk 0:00:26]} 1/2-1/2


[Site "https://www.chess.com"]

[Event "Titled Tuesday Blitz January 31 Late 2023"]
[White "Pasti, Aron"]
[Black "Tomiello, Mateus Costamilan"]
[WhiteFideId "785857"]
[BlackFideId "22701958"]
[WhiteElo "2361"]
[BlackElo "2097"]
[Result "1-0"]
[Round "01"]
[TimeControl "180+2"]
[Date "2023.01.31"]
[WhiteClock "0:00:48"]
[BlackClock "0:00:09"]

1. e4 {[%clk 0:03:00]}  e5 {[%clk 0:02:57]} 2. Nf3 {[%clk 0:03:01]}  Nc6 {[%clk 0:02:55]} 3. Bb5 {[%clk 0:03:01]}  a6 {[%clk 0:02:53]} 4. Ba4 {[%clk 0:03:02]}  Nf6 {[%clk 0:02:53]} 5. O-O {[%clk 0:03:02]}  Be7 {[%clk 0:02:51]} 6. Re1 {[%clk 0:03:02]}  b5 {[%clk 0:02:51]} 7. Bb3 {[%clk 0:03:02]}  d6 {[%clk 0:02:51]} 8. c3 {[%clk 0:03:01]}  O-O {[%clk 0:02:51]} 9. h3 {[%clk 0:03:01]}  Bb7 {[%clk 0:02:45]} 10. d4 {[%clk 0:03:01]}  Re8 {[%clk 0:02:44]} 11. Nbd2 {[%clk 0:02:16]}  Bf8 {[%clk 0:02:38]} 12. Bc2 {[%clk 0:02:15]}  g6 {[%clk 0:02:28]} 13. Nf1 {[%clk 0:02:13]}  Bg7 {[%clk 0:02:27]} 14. d5 {[%clk 0:02:06]}  Ne7 {[%clk 0:02:22]} 15. Bg5 {[%clk 0:02:02]}  c6 {[%clk 0:02:11]} 16. dxc6 {[%clk 0:01:59]}  Bxc6 {[%clk 0:02:11]} 17. Qd2 {[%clk 0:01:58]}  Qc7 {[%clk 0:02:10]} 18. a4 {[%clk 0:01:47]}  Rad8 {[%clk 0:02:05]} 19. axb5 {[%clk 0:01:46]}  axb5 {[%clk 0:02:05]} 20. N3h2 {[%clk 0:01:37]}  d5 {[%clk 0:02:01]} 21. Bxf6 {[%clk 0:01:32]}  Bxf6 {[%clk 0:01:59]} 22. Ng4 {[%clk 0:01:31]}  Bg7 {[%clk 0:01:57]} 23. Nh6+ {[%clk 0:01:23]}  Kf8 {[%clk 0:01:56]} 24. Qg5 {[%clk 0:01:14]}  d4 {[%clk 0:01:33]} 25. Bb3 {[%clk 0:01:08]}  Bxh6 {[%clk 0:00:41]} 26. Qxh6+ {[%clk 0:01:09]}  Kg8 {[%clk 0:00:41]} 27. Nh2 {[%clk 0:01:08]}  Bd7 {[%clk 0:00:31]} 28. Ng4 {[%clk 0:01:06]}  Bxg4 {[%clk 0:00:31]} 29. hxg4 {[%clk 0:01:07]}  Nc6 {[%clk 0:00:27]} 30. Bd5 {[%clk 0:01:01]}  Ne7 {[%clk 0:00:20]} 31. Bb3 {[%clk 0:00:57]}  Nc6 {[%clk 0:00:20]} 32. g3 {[%clk 0:00:57]}  Na5 {[%clk 0:00:20]} 33. Bd5 {[%clk 0:00:56]}  dxc3 {[%clk 0:00:16]} 34. bxc3 {[%clk 0:00:55]}  Qxc3 {[%clk 0:00:17]} 35. Kg2 {[%clk 0:00:55]}  Rxd5 {[%clk 0:00:15]} 36. exd5 {[%clk 0:00:55]}  Qb4 {[%clk 0:00:08]} 37. Rh1 {[%clk 0:00:52]}  Nb3 {[%clk 0:00:08]} 38. Qxh7+ {[%clk 0:00:52]}  Kf8 {[%clk 0:00:09]} 39. Qh8+ {[%clk 0:00:49]}  Ke7 {[%clk 0:00:10]} 40. Qxe5+ {[%clk 0:00:49]}  Kd7 {[%clk 0:00:09]} 41. Ra7+ {[%clk 0:00:48]} 1-0


[Site "https://www.chess.com"]

[Event "Titled Tuesday Blitz January 31 Late 2023"]
[White "Yurovskykh, Oleksandr"]
[Black "ritanovikova"]
[WhiteFideId "14134020"]
[WhiteElo "2328"]
[BlackElo "2217"]
[Result "1-0"]
[Round "01"]
[TimeControl "180+2"]
[Date "2023.01.31"]
[WhiteClock "0:00:14"]
[BlackClock "0:00:20"]

1. d4 {[%clk 0:02:22]}  g6 {[%clk 0:02:57]} 2. c4 {[%clk 0:01:49]}  Bg7 {[%clk 0:02:56]} 3. e4 {[%clk 0:01:47]}  d6 {[%clk 0:02:56]} 4. Nc3 {[%clk 0:01:45]}  Nc6 {[%clk 0:02:56]} 5. d5 {[%clk 0:01:41]}  Nd4 {[%clk 0:02:53]} 6. Be3 {[%clk 0:01:41]}  c5 {[%clk 0:02:51]} 7. Nge2 {[%clk 0:01:41]}  Nxe2 {[%clk 0:02:48]} 8. Bxe2 {[%clk 0:01:42]}  Nf6 {[%clk 0:02:47]} 9. O-O {[%clk 0:01:41]}  O-O {[%clk 0:02:47]} 10. Rb1 {[%clk 0:01:38]}  Ne8 {[%clk 0:02:31]} 11. f4 {[%clk 0:01:27]}  f5 {[%clk 0:02:30]} 12. exf5 {[%clk 0:01:25]}  Bxf5 {[%clk 0:02:28]} 13. Bd3 {[%clk 0:01:25]}  Qd7 {[%clk 0:02:23]} 14. Qc2 {[%clk 0:01:19]}  a6 {[%clk 0:02:11]} 15. a4 {[%clk 0:01:15]}  b6 {[%clk 0:02:05]} 16. b3 {[%clk 0:01:14]}  Nc7 {[%clk 0:02:05]} 17. Bxf5 {[%clk 0:01:06]}  Rxf5 {[%clk 0:02:03]} 18. Bd2 {[%clk 0:01:05]}  Raf8 {[%clk 0:02:03]} 19. Rbe1 {[%clk 0:01:02]}  R5f7 {[%clk 0:01:56]} 20. Ne4 {[%clk 0:00:55]}  h6 {[%clk 0:01:54]} 21. Ng3 {[%clk 0:00:53]}  Kh7 {[%clk 0:01:51]} 22. f5 {[%clk 0:00:47]}  gxf5 {[%clk 0:01:42]} 23. Nxf5 {[%clk 0:00:46]}  Kh8 {[%clk 0:01:41]} 24. Nxg7 {[%clk 0:00:36]}  Rxf1+ {[%clk 0:01:40]} 25. Rxf1 {[%clk 0:00:36]}  Rxf1+ {[%clk 0:01:40]} 26. Kxf1 {[%clk 0:00:37]}  Kxg7 {[%clk 0:01:39]} 27. Bc3+ {[%clk 0:00:38]}  Kf8 {[%clk 0:01:22]} 28. Qg6 {[%clk 0:00:35]}  e5 {[%clk 0:01:15]} 29. Bd2 {[%clk 0:00:18]}  Qf7+ {[%clk 0:00:52]} 30. Qxf7+ {[%clk 0:00:19]}  Kxf7 {[%clk 0:00:52]} 31. Bxh6 {[%clk 0:00:20]}  b5 {[%clk 0:00:44]} 32. Bg5 {[%clk 0:00:20]}  bxa4 {[%clk 0:00:40]} 33. bxa4 {[%clk 0:00:20]}  a5 {[%clk 0:00:38]} 34. Bd8 {[%clk 0:00:18]}  Ne8 {[%clk 0:00:33]} 35. Bxa5 {[%clk 0:00:18]}  Nf6 {[%clk 0:00:34]} 36. Bc7 {[%clk 0:00:19]}  Ne4 {[%clk 0:00:33]} 37. Ke2 {[%clk 0:00:19]}  Nc3+ {[%clk 0:00:31]} 38. Kd3 {[%clk 0:00:19]}  Nxa4 {[%clk 0:00:31]} 39. Bxd6 {[%clk 0:00:20]}  Kf6 {[%clk 0:00:30]} 40. h4 {[%clk 0:00:18]}  Nb2+ {[%clk 0:00:30]} 41. Kc3 {[%clk 0:00:18]}  Nd1+ {[%clk 0:00:30]} 42. Kd2 {[%clk 0:00:19]}  Nb2 {[%clk 0:00:29]} 43. Bxc5 {[%clk 0:00:13]}  Nxc4+ {[%clk 0:00:29]} 44. Kd3 {[%clk 0:00:14]}  Nb2+ {[%clk 0:00:27]} 45. Ke4 {[%clk 0:00:14]}  Na4 {[%clk 0:00:26]} 46. Bb4 {[%clk 0:00:14]}  Nb6 {[%clk 0:00:24]} 47. g4 {[%clk 0:00:14]}  Nd7 {[%clk 0:00:23]} 48. Bd6 {[%clk 0:00:12]}  Kg6 {[%clk 0:00:20]} 49. Bxe5 {[%clk 0:00:12]}  Nc5+ {[%clk 0:00:21]} 50. Ke3 {[%clk 0:00:10]}  Nd7 {[%clk 0:00:19]} 51. Kd4 {[%clk 0:00:08]}  Kf7 {[%clk 0:00:18]} 52. h5 {[%clk 0:00:08]}  Nf8 {[%clk 0:00:18]} 53. g5 {[%clk 0:00:09]}  Nh7 {[%clk 0:00:18]} 54. g6+ {[%clk 0:00:09]}  Kg8 {[%clk 0:00:18]} 55. gxh7+ {[%clk 0:00:09]}  Kxh7 {[%clk 0:00:19]} 56. Bf4 {[%clk 0:00:10]}  Kg7 {[%clk 0:00:18]} 57. Bg5 {[%clk 0:00:11]}  Kh7 {[%clk 0:00:19]} 58. Ke5 {[%clk 0:00:12]}  Kg7 {[%clk 0:00:19]} 59. d6 {[%clk 0:00:13]}  Kh7 {[%clk 0:00:19]} 60. d7 {[%clk 0:00:13]}  Kg7 {[%clk 0:00:20]} 61. d8=Q {[%clk 0:00:13]}  Kh7 {[%clk 0:00:21]} 62. Qf6 {[%clk 0:00:13]}  Kg8 {[%clk 0:00:20]} 63. Qe7 {[%clk 0:00:13]}  Kh8 {[%clk 0:00:20]} 64. h6 {[%clk 0:00:14]} 1-0


[Site "https://www.chess.com"]

[Event "Titled Tuesday Blitz January 31 Late 2023"]
[White "SicilianPanzer"]
[Black "Martinez Reyes, Pedro Ramon"]
[BlackFideId "3901807"]
[WhiteElo "2198"]
[BlackElo "2376"]
[Result "0-1"]
[Round "01"]
[TimeControl "180+2"]
[Date "2023.01.31"]
[WhiteClock "0:00:35"]
[BlackClock "0:02:09"]

1. c4 {[%clk 0:02:58]}  e6 {[%clk 0:02:58]} 2. Nf3 {[%clk 0:02:57]}  d5 {[%clk 0:02:58]} 3. e3 {[%clk 0:02:56]}  Nf6 {[%clk 0:02:58]} 4. b3 {[%clk 0:02:56]}  Be7 {[%clk 0:02:58]} 5. Bb2 {[%clk 0:02:55]}  O-O {[%clk 0:02:58]} 6. Nc3 {[%clk 0:02:54]}  b6 {[%clk 0:02:57]} 7. cxd5 {[%clk 0:02:51]}  exd5 {[%clk 0:02:56]} 8. Ne2 {[%clk 0:02:33]}  Bb7 {[%clk 0:02:53]} 9. Ng3 {[%clk 0:02:32]}  g6 {[%clk 0:02:53]} 10. d4 {[%clk 0:02:20]}  Nbd7 {[%clk 0:02:51]} 11. Be2 {[%clk 0:02:18]}  Bb4+ {[%clk 0:02:49]} 12. Kf1 {[%clk 0:02:10]}  Re8 {[%clk 0:02:49]} 13. h3 {[%clk 0:02:06]}  Bd6 {[%clk 0:02:48]} 14. Qd3 {[%clk 0:01:20]}  a5 {[%clk 0:02:45]} 15. Rc1 {[%clk 0:01:07]}  a4 {[%clk 0:02:44]} 16. Ne5 {[%clk 0:00:56]}  axb3 {[%clk 0:02:37]} 17. axb3 {[%clk 0:00:51]}  Ra2 {[%clk 0:02:29]} 18. Nxd7 {[%clk 0:00:42]}  Qxd7 {[%clk 0:02:22]} 19. Qc3 {[%clk 0:00:40]}  Bxg3 {[%clk 0:02:18]} 20. fxg3 {[%clk 0:00:39]}  Ne4 {[%clk 0:02:17]} 21. Qxc7 {[%clk 0:00:35]}  Qxc7 {[%clk 0:02:09]} 22. Rxc7 {[%clk 0:00:35]}  Rxb2 {[%clk 0:02:09]} 0-1


[Site "https://www.chess.com"]